[Event "*** SCC Grand Prix: Titled Tuesday Blitz"]
[Site "Chess.com"]
[Date "2020.08.25"]
[Round "4"]
[White "Keures"]
[Black "NMZanette"]
[Result "1/2-1/2"]
[WhiteElo "2288"]
[BlackElo "2115"]
[TimeControl "180+1"]
[EndTime "10:39:49 PDT"]
[Termination "Game drawn by agreement"]

1. d4 {[%clk 0:03:00.9]} 1... f5 {[%clk 0:02:59.5]} 2. e4 {[%clk 0:03:00.4]}
2... fxe4 {[%clk 0:02:59.6]} 3. Nc3 {[%clk 0:03:00.4]} 3... Nf6 {[%clk
0:02:59.8]} 4. Bg5 {[%clk 0:03:00.5]} 4... c6 {[%clk 0:03:00.1]} 5. Bxf6 {[%clk
0:02:56]} 5... exf6 {[%clk 0:03:01]} 6. Nxe4 {[%clk 0:02:56.3]} 6... d5 {[%clk
0:02:56.3]} 7. Ng3 {[%clk 0:02:55.1]} 7... Qb6 {[%clk 0:02:50.8]} 8. Qe2+ {[%clk
0:02:47.1]} 8... Kf7 {[%clk 0:02:50]} 9. O-O-O {[%clk 0:02:45.4]} 9... Bd6
{[%clk 0:02:46.8]} 10. Nf3 {[%clk 0:02:42.3]} 10... Re8 {[%clk 0:02:42.4]} 11.
Qd2 {[%clk 0:02:37.6]} 11... Qc7 {[%clk 0:02:39.9]} 12. Kb1 {[%clk 0:02:35]}
12... b5 {[%clk 0:02:34.5]} 13. c3 {[%clk 0:02:29.3]} 13... Bf4 {[%clk
0:02:08.7]} 14. Qc2 {[%clk 0:02:27.9]} 14... g6 {[%clk 0:02:08.2]} 15. Bd3
{[%clk 0:02:27.9]} 15... Nd7 {[%clk 0:02:03.1]} 16. Rhe1 {[%clk 0:02:21.8]}
16... Rxe1 {[%clk 0:02:02.4]} 17. Rxe1 {[%clk 0:02:21.8]} 17... Nf8 {[%clk
0:02:00.4]} 18. Ne2 {[%clk 0:02:14.4]} 18... Bd6 {[%clk 0:01:58.2]} 19. h4
{[%clk 0:02:13.8]} 19... Bg4 {[%clk 0:01:57]} 20. Nfg1 {[%clk 0:02:09.8]} 20...
Bxe2 {[%clk 0:01:56.2]} 21. Qxe2 {[%clk 0:02:05.1]} 21... Qd7 {[%clk 0:01:53.6]}
22. h5 {[%clk 0:02:03.5]} 22... Re8 {[%clk 0:01:51.9]} 23. Qxe8+ {[%clk
0:02:01.6]} 23... Qxe8 {[%clk 0:01:51.8]} 24. Rxe8 {[%clk 0:02:02.5]} 24... Kxe8
{[%clk 0:01:52.3]} 25. hxg6 {[%clk 0:02:03.2]} 25... hxg6 {[%clk 0:01:52.9]} 26.
Nf3 {[%clk 0:02:00.9]} 26... g5 {[%clk 0:01:46.9]} 27. b3 {[%clk 0:01:59.2]}
27... Ne6 {[%clk 0:01:43.9]} 28. g3 {[%clk 0:01:52.1]} 28... Ng7 {[%clk
0:01:39.2]} 29. c4 {[%clk 0:01:47.2]} 29... dxc4 {[%clk 0:01:32.8]} 30. bxc4
{[%clk 0:01:46.9]} 30... bxc4 {[%clk 0:01:33.5]} 31. Bxc4 {[%clk 0:01:46.3]}
31... Ke7 {[%clk 0:01:31.1]} 32. Kc2 {[%clk 0:01:44.6]} 32... Nf5 {[%clk
0:01:26.3]} 33. Kd3 {[%clk 0:01:43.3]} 33... Nh6 {[%clk 0:01:26.3]} 34. Nh2
{[%clk 0:01:39.4]} 34... f5 {[%clk 0:01:24.7]} 35. Ba6 {[%clk 0:01:36.5]} 35...
Kd7 {[%clk 0:01:23.6]} 36. Nf1 {[%clk 0:01:31.1]} 36... Ng4 {[%clk 0:01:23.1]}
37. Ne3 {[%clk 0:01:27.4]} 37... Nxf2+ {[%clk 0:01:20.1]} 38. Ke2 {[%clk
0:01:21.7]} 38... Ne4 {[%clk 0:01:09.7]} 39. Nxf5 {[%clk 0:01:17.5]} 39... Nxg3+
{[%clk 0:01:09.8]} 40. Nxg3 {[%clk 0:01:17]} 40... Bxg3 {[%clk 0:01:10.5]} 41.
Kf3 {[%clk 0:01:17.7]} 41... Bf4 {[%clk 0:01:07.4]} 42. Ke4 {[%clk 0:01:16.7]}
42... Kd6 {[%clk 0:01:07.9]} 43. Bb7 {[%clk 0:01:14.5]} 43... Bc1 {[%clk
0:01:07.3]} 44. Bc8 {[%clk 0:01:12.7]} 44... Bb2 {[%clk 0:01:03.5]} 45. Bg4
{[%clk 0:01:10.1]} 45... a5 {[%clk 0:00:59.8]} 46. a4 {[%clk 0:01:10.1]} 46...
c5 {[%clk 0:00:57.9]} 47. dxc5+ {[%clk 0:01:09.5]} 47... Kxc5 {[%clk 0:00:58.8]}
48. Bd7 {[%clk 0:01:09.3]} 48... Kb4 {[%clk 0:00:57.5]} 49. Kf5 {[%clk
0:01:09.5]} 49... Bc1 {[%clk 0:00:57.5]} 50. Kg4 {[%clk 0:01:09.8]} 50... Kc3
{[%clk 0:00:57.4]} 51. Be8 {[%clk 0:01:10.2]} 51... Kd4 {[%clk 0:00:57.6]} 52.
Bd7 {[%clk 0:01:10.6]} 52... Ke5 {[%clk 0:00:58.1]} 53. Be8 {[%clk 0:01:11]}
53... Kf6 {[%clk 0:00:58.6]} 54. Bb5 {[%clk 0:01:11.1]} 54... Ba3 {[%clk
0:00:58.6]} 55. Ba6 {[%clk 0:01:11.3]} 55... Bb4 {[%clk 0:00:57.3]} 1/2-1/2

[Event "*** SCC Grand Prix: Titled Tuesday Blitz"]
[Site "Chess.com"]
[Date "2020.08.25"]
[Round "4"]
[White "Saxar85"]
[Black "GlennTipton"]
[Result "1-0"]
[WhiteElo "2767"]
[BlackElo "2431"]
[TimeControl "180+1"]
[EndTime "10:39:54 PDT"]
[Termination "Saxar85 won by resignation"]

1. Nf3 {[%clk 0:03:00.9]} 1... d5 {[%clk 0:02:59.7]} 2. g3 {[%clk 0:03:00.6]}
2... c6 {[%clk 0:02:59.9]} 3. Bg2 {[%clk 0:03:00.4]} 3... Nf6 {[%clk 0:03:00.5]}
4. O-O {[%clk 0:02:59.8]} 4... Bf5 {[%clk 0:03:01.1]} 5. d3 {[%clk 0:02:58.1]}
5... Nbd7 {[%clk 0:03:00.7]} 6. Nh4 {[%clk 0:02:46.9]} 6... Bg6 {[%clk
0:02:58.9]} 7. Nd2 {[%clk 0:02:45.5]} 7... e5 {[%clk 0:02:56.7]} 8. c4 {[%clk
0:02:39.3]} 8... Be7 {[%clk 0:02:50.8]} 9. Nxg6 {[%clk 0:02:33.8]} 9... hxg6
{[%clk 0:02:50.3]} 10. b4 {[%clk 0:02:13.9]} 10... Bxb4 {[%clk 0:02:36.6]} 11.
Rb1 {[%clk 0:02:13.5]} 11... Bxd2 {[%clk 0:02:28.3]} 12. Bxd2 {[%clk 0:02:12.8]}
12... O-O {[%clk 0:02:27.9]} 13. cxd5 {[%clk 0:02:04]} 13... cxd5 {[%clk
0:02:22.5]} 14. Rxb7 {[%clk 0:01:51.1]} 14... Nc5 {[%clk 0:02:22.6]} 15. Rb5
{[%clk 0:01:46.8]} 15... Ne6 {[%clk 0:02:21.3]} 16. e3 {[%clk 0:01:39.1]} 16...
a6 {[%clk 0:02:17.4]} 17. Rb1 {[%clk 0:01:32.3]} 17... Qd7 {[%clk 0:02:01.6]}
18. Qb3 {[%clk 0:01:28.5]} 18... Rfb8 {[%clk 0:01:56.2]} 19. Qa3 {[%clk
0:01:25.1]} 19... Rb5 {[%clk 0:01:50.1]} 20. Bc3 {[%clk 0:01:16]} 20... Rxb1
{[%clk 0:01:10.3]} 21. Rxb1 {[%clk 0:01:15]} 21... Qc7 {[%clk 0:01:10.4]} 22.
Qb2 {[%clk 0:01:14.4]} 22... d4 {[%clk 0:01:00.7]} 23. Bxa8 {[%clk 0:01:06.8]}
23... dxc3 {[%clk 0:00:58.7]} 24. Qb8+ {[%clk 0:01:05.9]} 24... Kh7 {[%clk
0:00:58.3]} 25. Qxc7 {[%clk 0:01:02.7]} 25... Nxc7 {[%clk 0:00:58.2]} 26. Bc6
{[%clk 0:01:01.6]} 26... Nfd5 {[%clk 0:00:52.5]} 27. Bxd5 {[%clk 0:00:59.4]}
27... Nxd5 {[%clk 0:00:52.6]} 28. a3 {[%clk 0:00:57.5]} 28... f5 {[%clk
0:00:43.2]} 29. e4 {[%clk 0:00:57]} 29... fxe4 {[%clk 0:00:43.1]} 30. dxe4
{[%clk 0:00:56.8]} 30... Nf6 {[%clk 0:00:42.7]} 31. f3 {[%clk 0:00:56.4]} 31...
g5 {[%clk 0:00:40.3]} 32. g4 {[%clk 0:00:55.8]} 32... Nd7 {[%clk 0:00:37.3]} 33.
Rc1 {[%clk 0:00:55.1]} 33... Nc5 {[%clk 0:00:37.4]} 34. Rxc3 {[%clk 0:00:54.4]}
34... Ne6 {[%clk 0:00:38.3]} 35. Kf2 {[%clk 0:00:52.9]} 35... Nd4 {[%clk
0:00:36]} 36. Rc5 {[%clk 0:00:51.6]} 36... Nb5 {[%clk 0:00:31.5]} 37. a4 {[%clk
0:00:49.4]} 1-0

[Event "*** SCC Grand Prix: Titled Tuesday Blitz"]
[Site "Chess.com"]
[Date "2020.08.25"]
[Round "4"]
[White "sergiochess83"]
[Black "CHESSMASTER759"]
[Result "0-1"]
[WhiteElo "2828"]
[BlackElo "2531"]
[TimeControl "180+1"]
[EndTime "10:39:55 PDT"]
[Termination "CHESSMASTER759 won on time"]

1. e4 {[%clk 0:02:31.3]} 1... d6 {[%clk 0:02:57.1]} 2. d4 {[%clk 0:02:30.9]}
2... Nf6 {[%clk 0:02:56.6]} 3. Nc3 {[%clk 0:02:27.1]} 3... e5 {[%clk 0:02:56.3]}
4. Nf3 {[%clk 0:02:23.8]} 4... Nbd7 {[%clk 0:02:56.3]} 5. g4 {[%clk 0:02:14.5]}
5... g6 {[%clk 0:02:53.2]} 6. Rg1 {[%clk 0:02:04]} 6... Bg7 {[%clk 0:02:52.6]}
7. Be3 {[%clk 0:02:04.2]} 7... O-O {[%clk 0:02:48.6]} 8. g5 {[%clk 0:01:55.4]}
8... Nh5 {[%clk 0:02:47.2]} 9. Qd2 {[%clk 0:01:55.7]} 9... c6 {[%clk 0:02:44.3]}
10. O-O-O {[%clk 0:01:53.8]} 10... b5 {[%clk 0:02:33.6]} 11. dxe5 {[%clk
0:01:35.3]} 11... b4 {[%clk 0:02:32.2]} 12. Nb1 {[%clk 0:01:26.9]} 12... dxe5
{[%clk 0:02:27.1]} 13. Qxb4 {[%clk 0:01:20.9]} 13... Re8 {[%clk 0:02:23.8]} 14.
Bc4 {[%clk 0:01:17.8]} 14... Bf8 {[%clk 0:02:18.8]} 15. Qd2 {[%clk 0:01:11.2]}
15... Rb8 {[%clk 0:02:13.1]} 16. Bb3 {[%clk 0:01:08.4]} 16... Qc7 {[%clk
0:02:07.2]} 17. Qc3 {[%clk 0:00:40.4]} 17... a5 {[%clk 0:01:59.6]} 18. Nbd2
{[%clk 0:00:21.7]} 18... Nf4 {[%clk 0:01:49.3]} 19. Bxf4 {[%clk 0:00:18.4]}
19... exf4 {[%clk 0:01:48.9]} 20. a3 {[%clk 0:00:14.4]} 20... Bg7 {[%clk
0:01:46.1]} 21. Qc4 {[%clk 0:00:12.9]} 21... Nb6 {[%clk 0:01:42.7]} 22. Qc5
{[%clk 0:00:10.1]} 22... a4 {[%clk 0:01:35.2]} 23. Ba2 {[%clk 0:00:10]} 23...
Be6 {[%clk 0:01:20.3]} 24. Bxe6 {[%clk 0:00:09.2]} 24... Rxe6 {[%clk 0:01:17.4]}
25. Nc4 {[%clk 0:00:09.4]} 25... Nxc4 {[%clk 0:01:08.7]} 26. Qxc4 {[%clk
0:00:10.3]} 26... Bxb2+ {[%clk 0:01:09.1]} 27. Kd2 {[%clk 0:00:09.3]} 27... Rbe8
{[%clk 0:00:58.6]} 28. Rge1 {[%clk 0:00:07.7]} 28... Qd8+ {[%clk 0:00:50.7]} 0-1

[Event "*** SCC Grand Prix: Titled Tuesday Blitz"]
[Site "Chess.com"]
[Date "2020.08.25"]
[Round "4"]
[White "ZenBull"]
[Black "Karina_Ivanova"]
[Result "1-0"]
[WhiteElo "2122"]
[BlackElo "2249"]
[TimeControl "180+1"]
[EndTime "10:39:55 PDT"]
[Termination "ZenBull won by checkmate"]

1. Nf3 {[%clk 0:03:00.9]} 1... Nf6 {[%clk 0:02:59.3]} 2. c4 {[%clk 0:03:00.6]}
2... c5 {[%clk 0:02:58.7]} 3. Nc3 {[%clk 0:02:59.9]} 3... e6 {[%clk 0:02:58.3]}
4. g3 {[%clk 0:02:58.1]} 4... b6 {[%clk 0:02:56.7]} 5. Bg2 {[%clk 0:02:57.1]}
5... Bb7 {[%clk 0:02:55.7]} 6. O-O {[%clk 0:02:57.7]} 6... Be7 {[%clk
0:02:54.3]} 7. d4 {[%clk 0:02:58.4]} 7... cxd4 {[%clk 0:02:54]} 8. Qxd4 {[%clk
0:02:59.3]} 8... Nc6 {[%clk 0:02:53.1]} 9. Qf4 {[%clk 0:02:55.7]} 9... Qb8
{[%clk 0:02:52.8]} 10. Rd1 {[%clk 0:02:48.7]} 10... O-O {[%clk 0:02:50.9]} 11.
Qxb8 {[%clk 0:02:41.2]} 11... Raxb8 {[%clk 0:02:49.6]} 12. Bf4 {[%clk
0:02:41.6]} 12... Rbc8 {[%clk 0:02:47.5]} 13. Bd6 {[%clk 0:02:36.4]} 13... Rfd8
{[%clk 0:02:39.9]} 14. b3 {[%clk 0:02:11.2]} 14... Bxd6 {[%clk 0:02:32.9]} 15.
Rxd6 {[%clk 0:02:10.4]} 15... Ne7 {[%clk 0:02:31.6]} 16. Rad1 {[%clk 0:02:05.5]}
16... Nf5 {[%clk 0:02:29.1]} 17. R6d2 {[%clk 0:02:05.1]} 17... d5 {[%clk
0:02:26.7]} 18. Ne5 {[%clk 0:01:55.5]} 18... Ba8 {[%clk 0:02:19.4]} 19. e4
{[%clk 0:01:49.6]} 19... Ne7 {[%clk 0:02:11.8]} 20. exd5 {[%clk 0:01:46.5]}
20... exd5 {[%clk 0:02:10.7]} 21. Nxd5 {[%clk 0:01:39.2]} 21... Nexd5 {[%clk
0:02:09.3]} 22. Bxd5 {[%clk 0:01:38]} 22... Nxd5 {[%clk 0:02:07.3]} 23. cxd5
{[%clk 0:01:37.7]} 23... f6 {[%clk 0:01:55.2]} 24. Nc4 {[%clk 0:01:35.9]} 24...
Rd7 {[%clk 0:01:50]} 25. Ne3 {[%clk 0:01:33.3]} 25... Rcd8 {[%clk 0:01:49.5]}
26. f4 {[%clk 0:01:31.6]} 26... g5 {[%clk 0:01:48.2]} 27. f5 {[%clk 0:01:28.2]}
27... Re7 {[%clk 0:01:43.5]} 28. Kf2 {[%clk 0:01:26.6]} 28... Kf7 {[%clk
0:01:39.1]} 29. g4 {[%clk 0:01:16.5]} 29... Red7 {[%clk 0:01:33.6]} 30. Kf3
{[%clk 0:01:10]} 30... Ke7 {[%clk 0:01:23.3]} 31. Rd3 {[%clk 0:01:07.3]} 31...
Rc8 {[%clk 0:01:20.5]} 32. R1d2 {[%clk 0:01:04.9]} 32... Rc1 {[%clk 0:01:06.7]}
33. Kf2 {[%clk 0:01:02.2]} 33... b5 {[%clk 0:01:03.2]} 34. Re2 {[%clk 0:00:52]}
34... Kd6 {[%clk 0:00:59]} 35. Nc2 {[%clk 0:00:45.8]} 35... a6 {[%clk
0:00:44.1]} 36. Nb4 {[%clk 0:00:36.9]} 36... a5 {[%clk 0:00:40.6]} 37. Re6+
{[%clk 0:00:35.3]} 37... Kc5 {[%clk 0:00:40.2]} 38. Na6# {[%clk 0:00:34.3]} 1-0

[Event "*** SCC Grand Prix: Titled Tuesday Blitz"]
[Site "Chess.com"]
[Date "2020.08.25"]
[Round "4"]
[White "DrMamaliga"]
[Black "WonderChampion"]
[Result "1-0"]
[WhiteElo "2221"]
[BlackElo "1971"]
[TimeControl "180+1"]
[EndTime "10:39:55 PDT"]
[Termination "DrMamaliga won by checkmate"]

1. c4 {[%clk 0:03:00.9]} 1... e6 {[%clk 0:02:59.2]} 2. Nf3 {[%clk 0:02:59.7]}
2... d5 {[%clk 0:02:58]} 3. b3 {[%clk 0:03:00.6]} 3... Nf6 {[%clk 0:02:56.4]} 4.
g3 {[%clk 0:03:01.1]} 4... c5 {[%clk 0:02:54.2]} 5. Bg2 {[%clk 0:03:01.5]} 5...
Nc6 {[%clk 0:02:53.5]} 6. O-O {[%clk 0:03:02]} 6... Bd6 {[%clk 0:02:50.9]} 7. e3
{[%clk 0:03:02.3]} 7... O-O {[%clk 0:02:50.3]} 8. Bb2 {[%clk 0:03:02.8]} 8...
Qe7 {[%clk 0:02:49.1]} 9. Nc3 {[%clk 0:02:58.2]} 9... Bd7 {[%clk 0:02:47.4]} 10.
cxd5 {[%clk 0:02:55.9]} 10... exd5 {[%clk 0:02:48.3]} 11. d4 {[%clk 0:02:56.7]}
11... cxd4 {[%clk 0:02:47.5]} 12. Nxd4 {[%clk 0:02:56.2]} 12... Nxd4 {[%clk
0:02:46.9]} 13. Qxd4 {[%clk 0:02:55.9]} 13... Be6 {[%clk 0:02:46.5]} 14. Nxd5
{[%clk 0:02:54]} 14... Bxd5 {[%clk 0:02:43]} 15. Bxd5 {[%clk 0:02:54]} 15...
Rfd8 {[%clk 0:02:43.2]} 16. e4 {[%clk 0:02:30.1]} 16... Re8 {[%clk 0:02:37.8]}
17. Rae1 {[%clk 0:02:22.1]} 17... Rac8 {[%clk 0:02:30.3]} 18. e5 {[%clk
0:02:11.5]} 18... Bc5 {[%clk 0:02:27.2]} 19. Qd3 {[%clk 0:01:51.9]} 19... Nxd5
{[%clk 0:02:22]} 20. Qxd5 {[%clk 0:01:52.8]} 20... Rcd8 {[%clk 0:02:19.7]} 21.
Qc4 {[%clk 0:01:42.6]} 21... b6 {[%clk 0:02:14.4]} 22. Qc3 {[%clk 0:01:41.1]}
22... Qe6 {[%clk 0:02:07.9]} 23. Rd1 {[%clk 0:01:36.5]} 23... Rxd1 {[%clk
0:02:00.4]} 24. Rxd1 {[%clk 0:01:37.4]} 24... Qf5 {[%clk 0:02:00.6]} 25. Rd2
{[%clk 0:01:27.6]} 25... Qe6 {[%clk 0:01:53]} 26. Qd3 {[%clk 0:01:26.1]} 26...
g6 {[%clk 0:01:49.3]} 27. Qd7 {[%clk 0:01:24.1]} 27... Kg7 {[%clk 0:01:41.4]}
28. Qxe6 {[%clk 0:01:21.7]} 28... Rxe6 {[%clk 0:01:42.3]} 29. Kg2 {[%clk
0:01:21.8]} 29... Bb4 {[%clk 0:01:39]} 30. Rd7 {[%clk 0:01:21.4]} 30... Bc5
{[%clk 0:01:32.6]} 31. f4 {[%clk 0:01:20]} 31... h6 {[%clk 0:01:25.3]} 32. g4
{[%clk 0:01:19.5]} 32... Kf8 {[%clk 0:01:17.9]} 33. f5 {[%clk 0:01:15.2]} 33...
gxf5 {[%clk 0:01:13.8]} 34. gxf5 {[%clk 0:01:16.1]} 34... Rc6 {[%clk 0:01:14.1]}
35. f6 {[%clk 0:01:11.8]} 35... Kg8 {[%clk 0:01:05.5]} 36. a3 {[%clk 0:01:00.1]}
36... Be3 {[%clk 0:01:01.5]} 37. Kf3 {[%clk 0:00:57.8]} 37... Bg5 {[%clk
0:00:59.4]} 38. Bd4 {[%clk 0:00:52.1]} 38... Rc2 {[%clk 0:00:57.7]} 39. Rd8+
{[%clk 0:00:50.6]} 39... Kh7 {[%clk 0:00:56.2]} 40. e6 {[%clk 0:00:47.5]} 40...
fxe6 {[%clk 0:00:49.5]} 41. f7 {[%clk 0:00:47.6]} 41... Bxd8 {[%clk 0:00:45.1]}
42. f8=Q {[%clk 0:00:47.6]} 42... Bh4 {[%clk 0:00:43.6]} 43. Qg7# {[%clk
0:00:47.5]} 1-0

[Event "*** SCC Grand Prix: Titled Tuesday Blitz"]
[Site "Chess.com"]
[Date "2020.08.25"]
[Round "4"]
[White "Alexander_Zubov"]
[Black "Dedic8"]
[Result "1-0"]
[WhiteElo "2952"]
[BlackElo "2743"]
[TimeControl "180+1"]
[EndTime "10:39:56 PDT"]
[Termination "Alexander_Zubov won by resignation"]

1. d4 {[%clk 0:03:00.9]} 1... Nf6 {[%clk 0:03:00]} 2. Nf3 {[%clk 0:03:00.9]}
2... g6 {[%clk 0:02:59.9]} 3. c4 {[%clk 0:03:00.9]} 3... Bg7 {[%clk 0:03:00.1]}
4. Nc3 {[%clk 0:03:01.6]} 4... d5 {[%clk 0:03:00.1]} 5. e3 {[%clk 0:03:01.7]}
5... O-O {[%clk 0:02:59.7]} 6. Qb3 {[%clk 0:03:01.4]} 6... e6 {[%clk 0:03:00]}
7. Be2 {[%clk 0:03:00.9]} 7... b6 {[%clk 0:02:59.2]} 8. cxd5 {[%clk 0:03:00.7]}
8... exd5 {[%clk 0:02:59.2]} 9. Qa3 {[%clk 0:03:00.7]} 9... Nbd7 {[%clk
0:02:54.4]} 10. b4 {[%clk 0:02:58.3]} 10... c6 {[%clk 0:02:52.1]} 11. Qb3 {[%clk
0:02:56.2]} 11... Bb7 {[%clk 0:02:50.3]} 12. a4 {[%clk 0:02:54.7]} 12... a5
{[%clk 0:02:45.3]} 13. bxa5 {[%clk 0:02:52.1]} 13... Rxa5 {[%clk 0:02:46.2]} 14.
O-O {[%clk 0:02:48.1]} 14... Re8 {[%clk 0:02:46.2]} 15. Ba3 {[%clk 0:02:44.8]}
15... Ne4 {[%clk 0:02:26.3]} 16. Nxe4 {[%clk 0:02:32.6]} 16... dxe4 {[%clk
0:02:26.4]} 17. Nd2 {[%clk 0:02:32.8]} 17... Ba6 {[%clk 0:02:09.7]} 18. Bxa6
{[%clk 0:02:04.9]} 18... Rxa6 {[%clk 0:02:10.6]} 19. Nc4 {[%clk 0:02:05.2]}
19... c5 {[%clk 0:01:39]} 20. Rac1 {[%clk 0:01:34.6]} 20... Qa8 {[%clk
0:01:20.7]} 21. Qb5 {[%clk 0:01:14]} 21... Rd8 {[%clk 0:00:44.9]} 22. dxc5
{[%clk 0:01:13.1]} 22... Nxc5 {[%clk 0:00:44.6]} 23. Nxb6 {[%clk 0:01:07.2]}
23... Rxb6 {[%clk 0:00:42.6]} 24. Qxb6 {[%clk 0:01:07.6]} 24... Nd3 {[%clk
0:00:42.2]} 25. Rc4 {[%clk 0:00:59.1]} 25... Qd5 {[%clk 0:00:33.6]} 26. Qc6
{[%clk 0:00:58.3]} 26... Qxc6 {[%clk 0:00:29.5]} 27. Rxc6 {[%clk 0:00:57.8]}
27... Ra8 {[%clk 0:00:30.2]} 28. a5 {[%clk 0:00:50.2]} 28... Be5 {[%clk
0:00:21.1]} 29. a6 {[%clk 0:00:45.8]} 29... Kg7 {[%clk 0:00:20.9]} 30. Rb1
{[%clk 0:00:40.9]} 1-0

[Event "*** SCC Grand Prix: Titled Tuesday Blitz"]
[Site "Chess.com"]
[Date "2020.08.25"]
[Round "4"]
[White "wannabe2700"]
[Black "GigaQuparadze"]
[Result "0-1"]
[WhiteElo "2638"]
[BlackElo "2825"]
[TimeControl "180+1"]
[EndTime "10:39:57 PDT"]
[Termination "GigaQuparadze won by resignation"]

1. e4 {[%clk 0:03:00.9]} 1... c5 {[%clk 0:02:59.4]} 2. d4 {[%clk 0:03:01]} 2...
cxd4 {[%clk 0:02:59.3]} 3. Nf3 {[%clk 0:03:01.7]} 3... e6 {[%clk 0:02:57.3]} 4.
Nxd4 {[%clk 0:03:01.9]} 4... a6 {[%clk 0:02:56.9]} 5. Bd3 {[%clk 0:03:01.9]}
5... Nf6 {[%clk 0:02:52.6]} 6. O-O {[%clk 0:03:02.1]} 6... Qc7 {[%clk
0:02:52.9]} 7. Qe2 {[%clk 0:03:02.3]} 7... d6 {[%clk 0:02:53.1]} 8. c4 {[%clk
0:03:02.1]} 8... g6 {[%clk 0:02:53.4]} 9. Nc3 {[%clk 0:02:57.2]} 9... Bg7 {[%clk
0:02:53.5]} 10. Be3 {[%clk 0:02:57.8]} 10... O-O {[%clk 0:02:53.7]} 11. f4
{[%clk 0:02:56.8]} 11... e5 {[%clk 0:02:53]} 12. Nf3 {[%clk 0:02:50.3]} 12...
Nc6 {[%clk 0:02:51.3]} 13. Rac1 {[%clk 0:02:45.3]} 13... exf4 {[%clk 0:02:46.4]}
14. Bxf4 {[%clk 0:02:43.9]} 14... Nh5 {[%clk 0:02:46.2]} 15. Be3 {[%clk
0:02:42.1]} 15... Bg4 {[%clk 0:02:41.2]} 16. Nd5 {[%clk 0:02:41]} 16... Qd8
{[%clk 0:02:40.4]} 17. Bb6 {[%clk 0:02:34.8]} 17... Qd7 {[%clk 0:02:27.4]} 18.
Qf2 {[%clk 0:02:27]} 18... Bxf3 {[%clk 0:02:24.1]} 19. gxf3 {[%clk 0:02:25.1]}
19... Rae8 {[%clk 0:02:22.5]} 20. f4 {[%clk 0:02:18.4]} 20... Nf6 {[%clk
0:02:21.8]} 21. Rfe1 {[%clk 0:01:49.1]} 21... Ng4 {[%clk 0:02:12.5]} 22. Qg3
{[%clk 0:01:42.5]} 22... Bxb2 {[%clk 0:02:05.6]} 23. Rc2 {[%clk 0:01:33.8]}
23... Bg7 {[%clk 0:02:05]} 24. Rg2 {[%clk 0:01:15.7]} 24... Nf6 {[%clk 0:01:29]}
25. Nxf6+ {[%clk 0:01:00.8]} 25... Bxf6 {[%clk 0:01:29.9]} 26. f5 {[%clk
0:00:55.6]} 26... Ne5 {[%clk 0:01:29.3]} 27. Be2 {[%clk 0:00:53.5]} 27... Qc6
{[%clk 0:01:29.3]} 28. Be3 {[%clk 0:00:51.2]} 28... Qxe4 {[%clk 0:01:26]} 29.
Bh6 {[%clk 0:00:45.6]} 29... Bh4 {[%clk 0:01:25.4]} 30. Qh3 {[%clk 0:00:24.3]}
30... Bxe1 {[%clk 0:01:22.4]} 31. Bxf8 {[%clk 0:00:21.4]} 31... Rxf8 {[%clk
0:01:23.3]} 32. f6 {[%clk 0:00:15.9]} 32... Qf4 {[%clk 0:01:19.8]} 33. Kh1
{[%clk 0:00:10]} 33... Qxf6 {[%clk 0:01:19.4]} 34. Rg1 {[%clk 0:00:09.3]} 34...
Bh4 {[%clk 0:01:18.6]} 35. Rf1 {[%clk 0:00:09.5]} 35... Qg5 {[%clk 0:01:18.6]}
36. Rg1 {[%clk 0:00:09.4]} 36... Qd2 {[%clk 0:01:18]} 37. Qxh4 {[%clk
0:00:08.8]} 37... Qxe2 {[%clk 0:01:17.4]} 38. Rg3 {[%clk 0:00:06.5]} 38... Qf1+
{[%clk 0:01:17]} 39. Rg1 {[%clk 0:00:05.8]} 39... Qxg1+ {[%clk 0:01:17.2]} 40.
Kxg1 {[%clk 0:00:05.8]} 40... Nf3+ {[%clk 0:01:18.1]} 41. Kf2 {[%clk 0:00:05.6]}
41... Nxh4 {[%clk 0:01:19]} 0-1

[Event "*** SCC Grand Prix: Titled Tuesday Blitz"]
[Site "Chess.com"]
[Date "2020.08.25"]
[Round "4"]
[White "mishanick"]
[Black "bascheyaro"]
[Result "0-1"]
[WhiteElo "2962"]
[BlackElo "2764"]
[TimeControl "180+1"]
[EndTime "10:39:58 PDT"]
[Termination "bascheyaro won by resignation"]

1. d4 {[%clk 0:03:00.9]} 1... d5 {[%clk 0:02:39.7]} 2. c4 {[%clk 0:03:00.4]}
2... c6 {[%clk 0:02:39.7]} 3. Nf3 {[%clk 0:03:01]} 3... Bf5 {[%clk 0:02:39.4]}
4. Qb3 {[%clk 0:02:58.7]} 4... Qb6 {[%clk 0:02:39]} 5. cxd5 {[%clk 0:02:55.5]}
5... Bxb1 {[%clk 0:02:35.4]} 6. Rxb1 {[%clk 0:02:51.5]} 6... Qxb3 {[%clk
0:02:35.5]} 7. axb3 {[%clk 0:02:52.4]} 7... cxd5 {[%clk 0:02:35.6]} 8. e3 {[%clk
0:02:52.9]} 8... Nc6 {[%clk 0:02:30.9]} 9. Bd2 {[%clk 0:02:52.7]} 9... e6 {[%clk
0:02:29.8]} 10. Bb5 {[%clk 0:02:48.7]} 10... Bd6 {[%clk 0:02:29.8]} 11. Ke2
{[%clk 0:02:45.8]} 11... Ne7 {[%clk 0:02:28.9]} 12. Rhc1 {[%clk 0:02:46.3]}
12... a6 {[%clk 0:02:28.6]} 13. Ra1 {[%clk 0:02:40.7]} 13... Kd7 {[%clk
0:02:26.8]} 14. Bd3 {[%clk 0:02:38.6]} 14... f5 {[%clk 0:02:25.4]} 15. Bc3
{[%clk 0:02:35]} 15... h6 {[%clk 0:02:22.2]} 16. Ne1 {[%clk 0:02:32.7]} 16... g5
{[%clk 0:02:20]} 17. h3 {[%clk 0:02:32.3]} 17... g4 {[%clk 0:02:07.7]} 18. hxg4
{[%clk 0:02:30.5]} 18... fxg4 {[%clk 0:02:08.1]} 19. g3 {[%clk 0:02:31]} 19...
h5 {[%clk 0:02:00]} 20. Ng2 {[%clk 0:02:31.2]} 20... Raf8 {[%clk 0:01:59.5]} 21.
Rh1 {[%clk 0:02:31.7]} 21... Nf5 {[%clk 0:01:58.1]} 22. Raf1 {[%clk 0:02:09.6]}
22... Nce7 {[%clk 0:01:47]} 23. Be1 {[%clk 0:02:02.3]} 23... Rc8 {[%clk
0:01:42.5]} 24. Rfg1 {[%clk 0:01:59.4]} 24... Ng6 {[%clk 0:01:24.8]} 25. Bc3
{[%clk 0:01:45.9]} 25... Rcf8 {[%clk 0:01:19.1]} 26. b4 {[%clk 0:01:41.5]} 26...
b5 {[%clk 0:01:14.9]} 27. Ra1 {[%clk 0:01:37.8]} 27... Ra8 {[%clk 0:01:14.6]}
28. e4 {[%clk 0:00:57.5]} 28... Nfe7 {[%clk 0:01:14.7]} 29. e5 {[%clk 0:00:56]}
29... Bc7 {[%clk 0:01:14.3]} 30. Rh2 {[%clk 0:00:51.6]} 30... h4 {[%clk
0:00:58.9]} 31. Nxh4 {[%clk 0:00:49.5]} 31... Nxh4 {[%clk 0:00:38.7]} 32. gxh4
{[%clk 0:00:47.8]} 32... Nf5 {[%clk 0:00:37.1]} 33. h5 {[%clk 0:00:41.4]} 33...
g3 {[%clk 0:00:36.4]} 34. Rh3 {[%clk 0:00:40.3]} 34... gxf2 {[%clk 0:00:36.7]}
35. Bxf5 {[%clk 0:00:40.9]} 35... exf5 {[%clk 0:00:36.7]} 36. Rg1 {[%clk
0:00:39.9]} 36... fxg1=Q {[%clk 0:00:34.3]} 0-1